bitfinex/quotes_SOLUSD_20250531
["timestamp","ask_amount","ask_price","bid_price","bid_amount"]
[1748667471797,28.21614081,155.75,155.7,21.79523511]
[1748667472369,21.79523511,155.76,155.72,21.79523511]
[1748667472570,21.79523511,155.76,155.71,21.79523511]
[1748667472793,21.79523511,155.75,155.68,10.2]
[1748667472975,21.79523511,155.74,155.7,21.79523511]
[1748667473374,21.79523511,155.75,155.7,21.79523511]
[1748667473896,28.21588486,155.75,155.7,21.79523511]
[1748667474277,21.79523511,155.75,155.7,28.21779697]
[1748667474473,28.21585654,155.75,155.7,28.21779697]
[1748667475387,6.42019002,155.76,155.71,21.79523511]
[1748667475589,21.79523511,155.75,155.71,21.79523511]
[1748667476309,146.9,155.77,155.74,21.79523511]
[1748667476509,34.28884051,155.8,155.75,21.79523511]
[1748667479302,28.21416763,155.79,155.74,21.79523511]
[1748667480904,28.21416763,155.79,155.74,28.21616552]
[1748667481400,6.41893252,155.79,155.75,21.79523511]
[1748667482005,28.21416763,155.79,155.69,32.2799]
[1748667482217,28.21416763,155.79,155.74,21.79523511]
[1748667483633,21.79523511,155.78,155.73,21.79523511]
[1748667484121,6.41893252,155.79,155.73,21.79523511]
[1748667484317,21.79523511,155.78,155.73,21.79523511]
[1748667485534,21.79523511,155.79,155.74,21.79523511]
[1748667485695,27.87003511,155.8,155.75,21.79523511]
[1748667486725,6.41897703,155.79,155.75,21.79523511]
[1748667486923,28.21421214,155.79,155.74,21.79523511]
[1748667492217,28.21421214,155.79,155.75,21.79523511]
[1748667492739,6.41897703,155.79,155.75,21.79523511]
[1748667493046,28.21421214,155.79,155.75,21.79523511]
[1748667493619,28.21421214,155.79,155.74,21.79523511]
[1748667496051,21.79523511,155.78,155.73,21.79523511]
[1748667496761,21.79523511,155.75,155.67,1.5269]
[1748667496972,21.79523511,155.72,155.65,16.60461874]
[1748667497255,21.79523511,155.71,155.66,21.79523511]
[1748667497958,28.21779954,155.71,155.66,21.79523511]
[1748667498445,21.79523511,155.7,155.66,21.79523511]
[1748667498617,21.79523511,155.7,155.65,21.79523511]
[1748667498818,21.79523511,155.69,155.65,21.79523511]
[1748667500346,28.21843088,155.69,155.64,21.79523511]
[1748667501543,21.79523511,155.7,155.65,21.79523511]
[1748667502059,6.4221951,155.71,155.65,21.79523511]
[1748667502227,21.79523511,155.7,155.65,21.79523511]
[1748667502843,28.21819672,155.7,155.65,21.79523511]
[1748667504230,28.21819672,155.7,155.66,21.79523511]
[1748667505246,1.6394,155.72,155.66,21.79523511]
[1748667505436,21.79523511,155.72,155.68,21.79523511]
[1748667505633,21.79523511,155.72,155.67,21.79523511]
[1748667505944,21.79523511,155.71,155.67,21.79523511]
[1748667506125,21.79523511,155.72,155.67,21.79523511]
[1748667507149,21.79523511,155.72,155.67,28.21900123]
[1748667507861,28.21660543,155.73,155.68,21.79523511]
[1748667508163,21.79523511,155.72,155.68,21.79523511]
[1748667509262,21.79523511,155.72,155.67,28.21900123]
[1748667509433,28.21707287,155.72,155.67,28.21900123]
[1748667510941,28.21707287,155.72,155.67,21.79523511]
[1748667511260,21.79523511,155.71,155.66,21.79523511]
[1748667512047,21.79523511,155.7,155.66,21.79523511]
[1748667512245,21.79523511,155.7,155.65,21.79523511]
[1748667512485,21.79523511,155.7,155.66,21.79523511]
[1748667512664,28.21707287,155.72,155.67,21.79523511]
[1748667513474,21.79523511,155.71,155.66,28.21943587]
[1748667513783,28.21755193,155.71,155.66,28.21943587]
[1748667514686,28.21755193,155.71,155.66,21.79523511]
[1748667515394,21.79523511,155.71,155.66,28.21944204]
[1748667515598,28.21752316,155.71,155.66,21.79523511]
[1748667515765,28.21752316,155.71,155.65,6.42453993]
[1748667516071,28.21752316,155.71,155.66,21.79523511]
[1748667517268,21.79523511,155.7,155.65,21.79523511]
[1748667518067,21.79523511,155.69,155.64,21.79523511]
[1748667518273,21.79523511,155.69,155.65,21.79523511]
[1748667518582,28.21825547,155.69,155.65,21.79523511]
[1748667519984,21.79523511,155.69,155.65,21.79523511]
[1748667520197,28.21832422,155.69,155.65,21.79523511]
[1748667520486,21.79523511,155.69,155.65,21.79523511]
[1748667521289,28.2179287,155.7,155.65,21.79523511]
[1748667523281,21.79523511,155.7,155.65,28.21977745]
[1748667523484,153.3218975,155.72,155.67,21.79523511]
[1748667523697,175.11713261,155.72,155.68,21.79523511]
[1748667523871,21.79523511,155.71,155.66,21.79523511]
[1748667525383,28.21769804,155.71,155.66,21.79523511]
[1748667526262,28.21769804,155.71,155.64,6.42495839]
[1748667526463,21.79523511,155.7,155.65,21.79523511]
[1748667527793,28.21803591,155.7,155.65,21.79523511]
[1748667528686,28.21803591,155.7,155.65,28.21980651]
[1748667529286,168.69523511,155.72,155.68,21.79523511]
[1748667529492,175.11703313,155.72,155.68,21.79523511]
[1748667529669,175.11703313,155.72,155.67,21.79523511]
[1748667530487,175.11703313,155.72,155.66,6.42398307]
[1748667530488,21.79523511,155.71,155.66,21.79523511]
[1748667531776,21.79523511,155.71,155.66,28.21934084]
[1748667535277,146.9,155.72,155.67,21.79523511]
[1748667535475,168.69523511,155.72,155.67,21.79523511]
[1748667536194,168.69523511,155.72,155.66,6.42410573]
[1748667536374,175.11704743,155.72,155.67,28.218979]
[1748667538675,168.69523511,155.72,155.67,28.218979]
[1748667539183,21.79523511,155.71,155.67,6.42374389]
[1748667540198,21.79523511,155.71,155.66,28.21934601]
[1748667541680,28.21755128,155.71,155.65,67.51976964]
[1748667541984,21.79523511,155.7,155.65,67.51976964]
[1748667542790,21.79523511,155.7,155.65,45.72453453]
[1748667542992,21.79523511,155.67,155.63,10.18]
[1748667543273,21.79523511,155.67,155.62,28.2208456]
[1748667543770,21.79523511,155.67,155.62,21.79523511]
[1748667543978,21.79523511,155.67,155.63,21.79523511]
[1748667546275,28.2190967,155.67,155.63,21.79523511]
[1748667546480,28.2190967,155.67,155.62,21.79523511]
[1748667546985,21.79523511,155.66,155.62,21.79523511]
[1748667547180,21.79523511,155.66,155.6,71.72672018]
[1748667547181,21.79523511,155.66,155.61,21.79523511]
[1748667547576,21.79523511,155.66,155.6,71.72672018]
[1748667547784,21.79523511,155.66,155.61,21.79523511]
[1748667547984,21.79523511,155.66,155.62,21.79523511]
[1748667548185,28.2190967,155.67,155.62,21.79523511]
[1748667548779,21.79523511,155.66,155.62,21.79523511]
[1748667550803,21.79523511,155.66,155.61,28.22137403]
[1748667551306,28.2190967,155.67,155.62,21.79523511]
[1748667552000,21.79523511,155.66,155.61,21.79523511]
[1748667552203,21.79523511,155.68,155.63,21.79523511]
[1748667553105,28.21868349,155.68,155.63,21.79523511]
[1748667555988,21.79523511,155.67,155.63,21.79523511]
[1748667557907,13.94466749,155.67,155.63,13.94466749]
[1748667559394,20.36858541,155.67,155.63,13.94466749]
[1748667560309,13.94466749,155.67,155.63,13.94466749]
[1748667561395,20.36860229,155.67,155.63,13.94466749]
[1748667562915,13.94466749,155.67,155.63,13.94466749]
[1748667563114,13.94466749,155.67,155.63,20.370098]
[1748667563314,185.69142023,155.69,155.65,13.94466749]
[1748667563315,146.9,155.69,155.65,13.94466749]
[1748667564217,160.84466749,155.69,155.65,13.94466749]
[1748667566138,167.26778235,155.69,155.65,13.94466749]
[1748667566310,167.26778235,155.69,155.64,13.94466749]
[1748667568117,167.26778235,155.69,155.64,20.369665]
[1748667568429,160.84466749,155.69,155.64,20.369665]
[1748667568815,167.26782578,155.69,155.64,20.369665]
[1748667569515,160.84466749,155.69,155.64,20.369665]
[1748667569941,160.84466749,155.69,155.64,6.42499751]
[1748667570122,160.84466749,155.69,155.64,20.369665]
[1748667571246,167.2678367,155.69,155.64,20.369665]
[1748667571440,167.2678367,155.69,155.64,13.94466749]
[1748667571942,13.94466749,155.68,155.63,53.22466749]
[1748667572839,13.94466749,155.68,155.63,13.94466749]
[1748667573148,20.36818519,155.68,155.63,20.37012193]
[1748667575443,167.26783198,155.69,155.64,13.94466749]
[1748667575661,8.1774,155.68,155.64,13.94466749]
[1748667575830,22.12206749,155.68,155.63,20.37012193]
[1748667576027,8.1774,155.67,155.63,20.37012193]
[1748667578959,8.1774,155.67,155.64,13.94466749]
[1748667580331,8.1774,155.67,155.64,20.36965426]
[1748667582938,8.1774,155.66,155.64,12.27806749]
[1748667587160,6.5265,155.66,155.64,12.27806749]
[1748667590337,6.5265,155.66,155.64,18.70304534]
[1748667596367,6.5265,155.66,155.64,20.36964534]
[1748667597835,16.05481857,155.72,155.64,20.36964534]
[1748667597836,1.5094,155.74,155.66,0.28432314]
[1748667598040,1.5094,155.74,155.7,13.94466749]
[1748667599848,15.45406749,155.74,155.7,13.94466749]
[1748667600649,13.94466749,155.72,155.69,39.26]
[1748667600838,13.94466749,155.7,155.65,13.94466749]
[1748667601160,13.94466749,155.69,155.64,13.94466749]
[1748667601337,13.94466749,155.7,155.66,13.94466749]
[1748667601543,59.68156749,155.71,155.66,13.94466749]
[1748667602248,59.68156749,155.71,155.66,20.36856814]
[1748667602249,13.94466749,155.7,155.66,20.36856814]
[1748667603347,13.94466749,155.7,155.65,6.42454471]
[1748667603564,13.94466749,155.7,155.66,13.94466749]
[1748667603870,13.94466749,155.7,155.67,1.6384]
[1748667604972,13.94466749,155.69,155.67,1.6384]
[1748667605149,20.36746885,155.7,155.67,1.6384]
[1748667605351,13.94466749,155.7,155.67,1.6384]
[1748667605951,6.42227308,155.71,155.67,1.6384]
[1748667606151,13.94466749,155.7,155.67,1.6384]
[1748667608275,153.32147155,155.73,155.67,8.06212376]
[1748667608472,20.3664859,155.72,155.67,15.58306749]
[1748667608666,13.94466749,155.71,155.67,15.58306749]
[1748667609853,13.94466749,155.71,155.67,22.00685929]
[1748667610373,20.3664859,155.72,155.67,22.00685929]
[1748667610575,13.94466749,155.72,155.67,22.00685929]
[1748667611271,20.36662211,155.72,155.67,15.58306749]
[1748667611443,146.9,155.73,155.71,13.94466749]
[1748667611770,16.04743412,155.79,155.71,13.94466749]
[1748667611771,13.94466749,155.76,155.71,13.94466749]
[1748667611949,13.94466749,155.76,155.72,13.94466749]
[1748667612148,13.94466749,155.77,155.73,13.94466749]
[1748667612352,146.9,155.79,155.76,13.94466749]
[1748667613067,146.9,155.79,155.75,20.36514828]
[1748667614557,146.9,155.79,155.75,13.94466749]
[1748667614794,160.84466749,155.79,155.75,13.94466749]
[1748667614991,160.84466749,155.79,155.73,15.58306749]
[1748667614992,13.94466749,155.77,155.73,15.58306749]
[1748667615275,13.94466749,155.77,155.73,8.05975271]
[1748667615457,13.94466749,155.76,155.73,1.6384]
[1748667615779,13.94466749,155.77,155.73,15.58306749]
[1748667615959,21.76040046,155.77,155.73,23.39880046]
[1748667616491,21.76040046,155.77,155.73,1.6384]
[1748667617691,21.76040046,155.76,155.73,1.6384]
[1748667618760,6.41930928,155.78,155.73,1.6384]
[1748667618994,21.76040046,155.77,155.73,1.6384]
[1748667619701,21.76040046,155.76,155.73,1.6384]
[1748667619900,21.76040046,155.75,155.73,1.6384]
[1748667620491,21.76040046,155.76,155.73,1.6384]
[1748667621486,21.76040046,155.76,155.7,6.0773]
[1748667621487,21.76040046,155.74,155.69,23.30980046]
[1748667621662,21.76040046,155.71,155.69,1.5494]
[1748667622086,21.76040046,155.71,155.67,6.42375458]
[1748667624371,21.76040046,155.71,155.66,6.42413508]
[1748667624573,21.76040046,155.71,155.66,28.18453554]
[1748667625168,26.0,155.74,155.68,21.76040046]
[1748667625362,21.76040046,155.75,155.71,21.76040046]
[1748667625784,168.66040046,155.77,155.72,21.76040046]
[1748667625974,146.9,155.77,155.73,21.76040046]
[1748667626274,146.9,155.77,155.73,28.18144021]
[1748667626696,168.66040046,155.77,155.73,6.42103975]
[1748667627376,146.9,155.77,155.73,28.18144021]
[1748667627690,146.9,155.77,155.74,21.76040046]
[1748667628182,21.76040046,155.79,155.75,28.1809462]
[1748667629795,21.76040046,155.79,155.75,6.42054574]
[1748667629999,21.76040046,155.78,155.73,21.76040046]
[1748667630191,21.76040046,155.78,155.73,28.18168178]
[1748667630496,21.76040046,155.76,155.71,28.18219961]
[1748667631296,192.55853487,155.8,155.72,21.76040046]
[1748667631489,21.76040046,155.77,155.72,21.76040046]
[1748667631865,21.76040046,155.76,155.72,21.76040046]
[1748667633402,21.76040046,155.76,155.7,1.5996]
[1748667633403,21.76040046,155.75,155.7,29.78259096]
[1748667633574,21.76040046,155.73,155.69,16.5628966]
[1748667634390,21.76040046,155.74,155.69,16.5628966]
[1748667634599,21.76040046,155.74,155.7,21.76040046]
[1748667635292,26.0,155.78,155.71,28.18259556]
[1748667635497,21.76040046,155.76,155.72,21.76040046]
[1748667636193,21.76040046,155.77,155.72,21.76040046]
[1748667636390,21.76040046,155.77,155.73,6.42137032]
[1748667636902,21.76040046,155.76,155.73,6.42137032]
[1748667637701,21.76040046,155.75,155.71,21.76040046]
[1748667637900,21.76040046,155.72,155.68,6.42343268]
[1748667638197,21.76040046,155.71,155.66,7.92398527]
[1748667638388,21.76040046,155.7,155.66,7.92398527]
[1748667638587,21.76040046,155.69,155.66,1.5001]
[1748667638804,21.76040046,155.67,155.62,1.6391]
[1748667639103,21.76040046,155.65,155.61,6.42632221]
[1748667639797,21.76040046,155.64,155.6,38.32702196]
[1748667640412,21.76040046,155.65,155.6,38.32702196]
[1748667641079,153.32304981,155.69,155.61,21.76040046]
[1748667641283,146.9,155.69,155.65,21.76040046]
[1748667641506,21.76040046,155.7,155.65,21.76040046]
[1748667641887,21.76040046,155.69,155.65,21.76040046]
[1748667642304,21.76040046,155.69,155.65,28.18487662]
[1748667642505,21.76040046,155.7,155.65,28.18487662]
[1748667642678,6.42207716,155.72,155.65,28.18487662]
[1748667642885,21.76040046,155.7,155.65,28.18487662]
[1748667644205,21.76040046,155.7,155.64,6.70940666]
[1748667644414,21.76040046,155.7,155.65,21.76040046]
[1748667645898,21.76040046,155.7,155.66,6.42425799]
[1748667648505,146.9,155.73,155.69,21.76040046]
[1748667649421,146.9,155.73,155.7,21.76040046]
[1748667650211,146.9,155.73,155.7,28.18297103]
[1748667650411,146.9,155.73,155.69,28.18337794]
[1748667650616,168.66040046,155.73,155.69,28.18337794]
[1748667650918,21.76040046,155.72,155.68,45.66333011]
[1748667651344,21.76040046,155.72,155.68,6.42333011]
[1748667652031,21.76040046,155.71,155.68,6.42333011]
[1748667652316,21.76040046,155.72,155.68,6.42333011]
[1748667652522,21.76040046,155.71,155.67,6.42384531]
[1748667652816,21.76040046,155.71,155.67,28.18424577]
[1748667653330,146.9,155.73,155.68,21.76040046]
[1748667653331,21.76040046,155.72,155.68,21.76040046]
[1748667653819,168.66040046,155.73,155.68,21.76040046]
[1748667654401,21.76040046,155.72,155.67,28.18424577]
[1748667655416,21.76040046,155.72,155.69,6.4230201]
[1748667655622,21.76040046,155.72,155.68,6.42335004]
[1748667656600,21.76040046,155.72,155.67,6.42384531]
[1748667656800,21.76040046,155.72,155.67,28.18424577]
[1748667657630,21.76040046,155.72,155.68,28.18354548]
[1748667658499,21.76040046,155.72,155.67,6.42384015]
[1748667658699,21.76040046,155.72,155.67,28.18424061]
[1748667659006,21.76040046,155.72,155.68,21.76040046]
[1748667660117,168.66040046,155.73,155.68,28.18369612]
[1748667660433,21.76040046,155.72,155.68,28.18369612]
[1748667660802,21.76040046,155.72,155.68,6.42329566]
[1748667661507,21.76040046,155.72,155.68,28.18369612]
[1748667663845,146.9,155.73,155.71,21.76040046]
[1748667664143,21.76040046,155.77,155.72,21.76040046]
[1748667664308,21.76040046,155.78,155.73,21.76040046]
[1748667665432,146.9,155.8,155.76,21.76040046]
[1748667665645,168.66040046,155.8,155.76,6.42013353]
[1748667665933,146.9,155.8,155.76,28.18053399]
[1748667666140,168.66040046,155.8,155.76,6.42013353]
[1748667666308,168.66040046,155.8,155.75,28.18082745]
[1748667666509,21.76040046,155.79,155.74,21.76040046]
[1748667666722,21.76040046,155.78,155.73,61.00040046]
[1748667667023,21.76040046,155.78,155.74,21.76040046]
[1748667667231,21.76040046,155.79,155.74,21.76040046]
[1748667667407,146.9,155.8,155.76,21.76040046]
[1748667667811,146.9,155.8,155.76,28.18049182]
[1748667668530,21.76040046,155.79,155.74,21.76040046]
[1748667670039,21.76040046,155.79,155.74,28.18128565]
[1748667670263,146.9,155.8,155.75,21.76040046]
[1748667670453,168.66040046,155.8,155.75,21.76040046]
[1748667670636,21.76040046,155.79,155.74,6.42088519]
[1748667670961,21.76040046,155.79,155.74,28.18128565]
[1748667671333,21.76040046,155.78,155.74,28.18128565]
[1748667672256,21.76040046,155.78,155.74,21.76040046]
[1748667672951,21.76040046,155.77,155.72,28.18207741]
[1748667673152,21.76040046,155.78,155.73,21.76040046]
[1748667674940,6.418928,155.79,155.73,28.18137872]
[1748667675128,146.9,155.8,155.76,21.76040046]
[1748667676748,168.66040046,155.8,155.75,28.18077771]
[1748667676927,21.76040046,155.79,155.74,28.1812311]
[1748667677246,153.31867583,155.8,155.72,28.18186979]
[1748667677247,21.76040046,155.77,155.72,28.18186979]
[1748667677654,153.31867583,155.8,155.72,21.76040046]
[1748667677655,21.76040046,155.76,155.72,21.76040046]
[1748667677850,21.76040046,155.73,155.7,10.14]
[1748667678164,21.76040046,155.73,155.68,28.18376568]
[1748667679458,21.76040046,155.72,155.68,6.42336522]
[1748667680331,21.76040046,155.74,155.69,21.76040046]
[1748667680534,21.76040046,155.74,155.7,6.42260757]
[1748667681143,21.76040046,155.73,155.69,28.18328552]
[1748667681668,21.76040046,155.72,155.68,28.18367525]
[1748667682457,21.76040046,155.74,155.7,21.76040046]
[1748667682633,7.5617,155.77,155.72,21.76040046]
[1748667682634,12.47093082,155.77,155.72,21.76040046]
[1748667682834,34.23133128,155.77,155.72,21.76040046]
[1748667683870,27.81150046,155.77,155.72,28.18180005]
[1748667684059,21.76040046,155.77,155.72,28.18180005]
[1748667684270,146.9,155.79,155.74,21.76040046]
[1748667684563,146.9,155.79,155.72,6.42139959]
[1748667684564,146.9,155.79,155.76,21.76040046]
[1748667684760,146.9,155.79,155.75,21.76040046]
[1748667685562,146.9,155.79,155.76,21.76040046]
[1748667685865,146.9,155.79,155.76,6.42013353]
[1748667686155,146.9,155.79,155.76,28.18053399]
[1748667686935,146.9,155.79,155.78,21.76040046]
[1748667687543,146.9,155.79,155.77,21.76040046]
[1748667687967,146.9,155.79,155.77,28.17995975]
[1748667688344,146.9,155.79,155.77,6.41955929]
[1748667688552,146.9,155.79,155.76,28.1803732]
[1748667689568,146.9,155.79,155.77,21.76040046]
[1748667690239,146.9,155.79,155.77,28.18009897]
[1748667690444,146.9,155.79,155.77,21.76040046]
[1748667690649,146.9,155.79,155.77,28.18008912]
[1748667691252,28.17813873,155.82,155.77,28.18008912]
[1748667691568,21.76040046,155.81,155.77,28.18008912]
[1748667691946,21.76040046,155.81,155.77,21.76040046]
[1748667692160,28.17848933,155.81,155.77,21.76040046]
[1748667692752,28.17848933,155.81,155.76,28.18037834]
[1748667693149,21.76040046,155.81,155.77,21.76040046]
[1748667696271,21.76040046,155.81,155.77,28.17993957]
[1748667696673,21.76040046,155.81,155.77,21.76040046]
[1748667696674,28.17852925,155.81,155.77,21.76040046]
[1748667696883,28.17852925,155.81,155.76,28.18041665]
[1748667697362,21.76040046,155.8,155.76,28.18041665]
[1748667697759,6.41731756,155.83,155.77,0.28432314]
[1748667697977,21.76040046,155.82,155.77,22.0447236]
[1748667699047,188.13806772,155.84,155.78,28.17970974]
[1748667699392,21.76040046,155.83,155.79,21.76040046]
[1748667699773,21.76040046,155.83,155.78,28.17970974]
[1748667700184,21.76040046,155.83,155.79,21.76040046]
[1748667700591,188.13793177,155.84,155.79,21.76040046]
[1748667700786,21.76040046,155.83,155.79,28.17905599]
[1748667701669,28.17766029,155.83,155.79,28.17905599]
[1748667701891,181.72108124,155.84,155.79,28.17905599]
[1748667702094,21.76040046,155.83,155.79,28.17905599]
[1748667702278,155.72108124,155.84,155.8,21.76040046]
[1748667702485,146.9,155.84,155.82,21.76040046]
[1748667702864,146.9,155.84,155.81,21.76040046]
[1748667703365,168.66040046,155.84,155.8,21.76040046]
[1748667703936,146.9,155.84,155.81,21.76040046]
[1748667704067,146.9,155.84,155.79,45.63872649]
[1748667704259,146.9,155.84,155.81,21.76040046]
[1748667704576,21.76040046,155.82,155.75,16.05134012]
[1748667704783,21.76040046,155.82,155.77,21.76040046]
[1748667704784,21.76040046,155.81,155.77,21.76040046]
[1748667705171,21.76040046,155.82,155.77,21.76040046]
[1748667705370,28.17780665,155.83,155.78,21.76040046]
[1748667705569,6.41740619,155.83,155.79,21.76040046]
[1748667705773,28.17780665,155.83,155.79,21.76040046]
[1748667706671,6.41740619,155.83,155.79,21.76040046]
[1748667706872,28.17780665,155.83,155.79,21.76040046]
[1748667707081,146.9,155.84,155.8,21.76040046]
[1748667707792,146.9,155.84,155.81,21.76040046]
[1748667708705,146.9,155.84,155.81,28.17812697]
[1748667713008,146.9,155.84,155.82,21.76040046]
[1748667713927,6.2707,155.91,155.83,60.98040046]
[1748667714126,6.2707,155.91,155.88,21.76040046]
[1748667714281,2.5127968,155.92,155.88,21.76040046]
[1748667714282,0.9038968,155.92,155.88,21.76040046]
[1748667714486,22.66429726,155.92,155.88,21.76040046]
[1748667714705,21.76040046,155.91,155.84,49.64]
[1748667714909,21.76040046,155.9,155.85,21.76040046]
[1748667715234,21.76040046,155.9,155.86,6.41601437]
[1748667715534,21.76040046,155.91,155.86,28.17641483]
[1748667716116,28.17443557,155.91,155.86,28.17641483]
[1748667716413,21.76040046,155.91,155.86,28.17641483]
[1748667717019,28.17444256,155.91,155.86,28.17641483]
[1748667717336,21.76040046,155.91,155.87,21.76040046]
[1748667717509,21.76040046,155.91,155.86,28.17641483]
[1748667718243,28.17451662,155.91,155.86,6.41601437]
[1748667718411,28.17451662,155.91,155.86,28.17641483]
[1748667719005,21.76040046,155.9,155.84,49.64]
[1748667719217,21.76040046,155.89,155.84,71.40040046]
[1748667719515,21.76040046,155.89,155.84,31.90040046]
[1748667720115,21.76040046,155.86,155.81,47.76040046]
[1748667720315,21.76040046,155.86,155.82,6.41765913]
[1748667720543,21.76040046,155.86,155.81,28.17846568]
[1748667720728,21.76040046,155.85,155.82,0.5]
[1748667721039,21.76040046,155.84,155.82,0.5]
[1748667721213,21.76040046,155.85,155.82,0.5]
[1748667721418,21.76040046,155.83,155.76,3.33421096]
[1748667721643,21.76040046,155.81,155.76,25.09461142]
[1748667721843,26.0,155.85,155.77,28.17986188]
[1748667722011,21.76040046,155.83,155.79,21.76040046]
[1748667722214,21.76040046,155.83,155.79,6.41889723]
[1748667722836,21.76040046,155.83,155.78,28.17955346]
[1748667723449,54.17699471,155.85,155.8,21.76040046]
[1748667723854,21.76040046,155.84,155.79,21.76040046]
[1748667724847,28.17730865,155.84,155.79,28.17926958]
[1748667725349,21.76040046,155.84,155.79,28.17926958]
[1748667725734,146.9,155.87,155.8,10.64]
[1748667725927,146.9,155.87,155.83,21.76040046]
[1748667726321,21.76040046,155.88,155.83,21.76040046]
[1748667726519,209.28429726,155.92,155.87,21.76040046]
[1748667726520,147.8038968,155.92,155.87,21.76040046]
[1748667726757,7.31759852,155.92,155.87,6.41546764]
[1748667727047,7.31759852,155.92,155.86,28.17626867]
[1748667727250,21.76040046,155.91,155.86,28.17626867]
[1748667727449,22.66429726,155.92,155.87,21.76040046]
[1748667728838,22.66429726,155.92,155.88,6.41519117]
[1748667729429,0.9038968,155.92,155.88,6.41519117]
[1748667729759,22.66429726,155.92,155.88,6.41519117]
[1748667730127,0.9038968,155.92,155.88,6.41519117]
[1748667730341,22.66429726,155.92,155.88,6.41519117]
[1748667730660,29.07784627,155.92,155.87,28.17583926]
[1748667731359,22.66429726,155.92,155.87,28.17583926]
[1748667731757,0.9038968,155.92,155.87,28.17583926]
[1748667732053,22.66429726,155.92,155.87,28.17583926]
[1748667734865,21.76040046,155.91,155.86,28.17637441]
[1748667735363,7.31749717,155.92,155.87,21.76040046]
[1748667735364,22.66429726,155.92,155.87,21.76040046]
[1748667735766,29.07786517,155.92,155.87,21.76040046]
[1748667735950,22.66429726,155.92,155.87,21.76040046]
[1748667736262,22.66429726,155.92,155.88,6.41519117]
[1748667736963,0.9038968,155.92,155.88,6.41519117]
[1748667737160,22.66429726,155.92,155.88,6.41519117]
[1748667737337,0.9038968,155.92,155.88,28.17559163]
[1748667737743,22.66429726,155.92,155.88,6.41519117]
[1748667739447,21.76040046,155.89,155.85,10.14]
[1748667739643,21.76040046,155.88,155.84,6.41667483]
[1748667740572,21.76040046,155.88,155.83,28.17751886]
[1748667740756,21.76040046,155.84,155.81,10.14]
[1748667740950,21.76040046,155.82,155.78,98.81915171]
[1748667741145,21.76040046,155.83,155.78,28.17955217]
[1748667741456,21.76040046,155.83,155.78,21.76040046]
[1748667741785,21.76040046,155.82,155.77,19.89354188]
[1748667741948,21.76040046,155.8,155.77,13.47399691]
[1748667743477,28.17859211,155.81,155.77,13.47399691]
[1748667743681,21.76040046,155.79,155.77,3.33399691]
[1748667743979,21.76040046,155.78,155.77,3.33399691]
[1748667744276,21.76040046,155.78,155.73,10.42]
[1748667744478,21.76040046,155.77,155.73,10.42]
[1748667746575,28.18016863,155.77,155.73,10.42]
[1748667746788,28.18073763,155.76,155.71,21.76040046]
[1748667747090,21.76040046,155.75,155.7,28.18263823]
[1748667747983,6.42022903,155.76,155.69,10.42]
[1748667747984,21.76040046,155.72,155.69,10.42]
[1748667751080,21.76040046,155.7,155.65,38.60507119]
[1748667751768,21.76040046,155.69,155.65,38.60507119]
[1748667752364,21.76040046,155.71,155.66,21.76040046]
[1748667752957,21.76040046,155.71,155.65,16.84467073]
[1748667753174,21.76040046,155.71,155.66,21.76040046]
[1748667753487,21.76040046,155.71,155.66,28.184481]
[1748667753863,21.76040046,155.7,155.65,16.84451121]
[1748667754062,21.76040046,155.68,155.65,10.42]
[1748667754288,21.76040046,155.67,155.65,10.42]
[1748667754587,21.76040046,155.67,155.63,6.42540583]
[1748667754886,21.76040046,155.67,155.63,28.18580629]
[1748667756590,21.76040046,155.68,155.63,28.18580629]
[1748667757987,26.0,155.7,155.63,28.18580629]
[1748667758177,21.76040046,155.68,155.63,28.18580629]
[1748667758674,21.76040046,155.67,155.63,28.18580629]
[1748667760089,21.76040046,155.68,155.63,28.18580629]
[1748667760673,21.76040046,155.69,155.64,21.76040046]
[1748667760987,146.9,155.71,155.67,21.76040046]
[1748667761882,146.9,155.71,155.67,28.18397028]
[1748667762085,146.9,155.71,155.68,21.76040046]
[1748667762277,9.33042351,155.74,155.7,21.76040046]
[1748667762584,9.33042351,155.74,155.71,21.76040046]
[1748667764071,9.33042351,155.74,155.71,28.18258457]
[1748667764277,9.33042351,155.74,155.71,21.76040046]
[1748667764484,9.33042351,155.74,155.7,28.18273874]
[1748667764785,37.51181854,155.74,155.69,21.76040046]
[1748667765375,21.76040046,155.72,155.67,6.42378615]
[1748667765579,21.76040046,155.73,155.68,21.76040046]
[1748667765778,28.18179768,155.73,155.68,21.76040046]
[1748667767191,21.76040046,155.73,155.69,21.76040046]
[1748667768081,21.76040046,155.73,155.68,28.18373691]
[1748667771294,31.09082397,155.74,155.69,21.76040046]
[1748667771525,31.09082397,155.74,155.7,21.76040046]
[1748667772803,37.51187167,155.74,155.69,21.76040046]
[1748667773483,37.51187167,155.74,155.69,28.18329149]
[1748667773691,21.76040046,155.73,155.68,21.76040046]
[1748667774405,37.51187167,155.74,155.69,21.76040046]